fUST/lending_fUST_20240501
["ID","MTS","AMOUNT","RATE_DAILY","PERIOD"]
[325196688,1714572677830,-500.0,0.00056986,120]
[325196689,1714572677840,-500.0,0.00056986,120]
[325196690,1714572677850,-760.17,0.00056986,120]
[325196691,1714572677859,-601.05,0.00056986,120]
[325196692,1714572677870,-500.0,0.00056986,120]
[325196693,1714572677879,-500.0,0.00056986,120]
[325196694,1714572677889,-500.0,0.00056986,120]
[325196695,1714572677901,-928.81,0.00056986,120]
[325196696,1714572677910,-911.4,0.00056986,120]
[325196697,1714572677920,-500.0,0.00056986,120]
[325196698,1714572677929,-500.0,0.00056986,120]
[325196699,1714572677939,-514.42,0.00056986,120]
[325196700,1714572677948,-500.0,0.00056986,120]
[325196701,1714572677958,-500.0,0.00056986,120]
[325196702,1714572677968,-500.0,0.00056986,120]
[325196703,1714572677977,-595.81,0.00056986,120]
[325196704,1714572677988,-500.0,0.00056986,120]
[325196705,1714572677997,-546.33,0.00056986,120]
[325196706,1714572678007,-1330.07,0.00056986,120]
[325196707,1714572678017,-500.0,0.00056986,120]
[325196708,1714572678027,-500.0,0.00056986,120]
[325196709,1714572678035,-500.0,0.00056986,120]
[325196710,1714572678045,-500.0,0.00056986,120]
[325196711,1714572678055,-734.7,0.00056986,120]
[325196712,1714572678066,-500.0,0.00056986,120]
[325196713,1714572678075,-517.3,0.00056986,120]
[325196714,1714572678085,-500.0,0.00056986,120]
[325196715,1714572678095,-500.0,0.00056986,120]
[325196716,1714572678104,-626.18,0.00056986,120]
[325196717,1714572678114,-894.54,0.00056986,120]
[325196718,1714572678123,-500.0,0.00056986,120]
[325196719,1714572678134,-500.0,0.00056986,120]
[325196720,1714572678144,-4028.05,0.00056986,120]
[325196721,1714572678154,-500.0,0.00056986,120]
[325196722,1714572678167,-2976.84,0.00056986,120]
[325196723,1714572678179,-500.0,0.00056986,120]
[325196724,1714572678188,-500.0,0.00056986,120]
[325196725,1714572678198,-500.0,0.00056986,120]
[325196726,1714572678207,-1523.39,0.00056986,120]
[325196727,1714572678218,-170.95245188,0.00057,120]
[325196728,1714572678227,-604.07512,0.00057051,2]
[325196729,1714572678237,-151.0,0.00057342,120]
[325196730,1714572678248,-154.87424562,0.00057422,120]
[325196731,1714572678258,-500.0,0.00057534,120]
[325196732,1714572678267,-500.0,0.00057534,120]
[325196733,1714572678277,-500.0,0.00057534,120]
[325196734,1714572678287,-500.0,0.00057534,120]
[325196735,1714572678296,-500.0,0.00057534,120]
[325196736,1714572678306,-675.55,0.00057534,120]
[325196737,1714572678315,-500.0,0.00057534,120]
[325196738,1714572678325,-500.0,0.00057534,120]
[325196739,1714572678334,-500.0,0.00057534,120]
[325196740,1714572678344,-500.0,0.00057534,120]
[325196741,1714572678353,-627.3,0.00057534,120]
[325196742,1714572678362,-500.0,0.00057534,120]
[325196743,1714572678371,-500.0,0.00057534,120]
[325196744,1714572678381,-500.0,0.00057534,120]
[325196745,1714572678390,-500.0,0.00057534,120]
[325196746,1714572678401,-500.0,0.00057534,60]
[325196747,1714572678411,-180.66504651,0.00057534,120]
[325196748,1714572678420,-500.0,0.00057534,120]
[325196749,1714572678429,-981.62,0.00057534,120]
[325196750,1714572678439,-500.0,0.00057534,120]
[325196751,1714572678449,-1156.78,0.00057534,120]
[325196752,1714572678460,-615.44,0.00057534,120]
[325196753,1714572678470,-605.91,0.00057534,120]
[325196754,1714572678480,-501.93477733,0.00057534,120]
[325196755,1714572678490,-500.0,0.00057534,120]
[325196756,1714572678499,-500.0,0.00057534,120]
[325196757,1714572678509,-500.0,0.00057534,120]
[325196758,1714572678518,-500.0,0.00057534,120]
[325196759,1714572678527,-500.0,0.00057534,120]
[325196760,1714572678536,-1193.27,0.00057534,120]
[325196761,1714572678546,-500.0,0.00057534,120]
[325196762,1714572678555,-500.0,0.00057534,120]
[325196763,1714572678565,-500.0,0.00057534,120]
[325196764,1714572678574,-500.0,0.00057534,120]
[325196765,1714572678584,-500.0,0.00057534,120]
[325196766,1714572678593,-500.0,0.00057534,120]
[325196767,1714572678603,-500.0,0.00057534,120]
[325196768,1714572678612,-507.26523388,0.00057534,120]
[325196769,1714572678622,-500.0,0.00057534,120]
[325196770,1714572678631,-535.92,0.00057534,120]
[325196771,1714572678642,-500.0,0.00057534,120]
[325196772,1714572678653,-500.0,0.00057534,120]
[325196773,1714572678763,-500.0,0.00057534,120]
[325196774,1714572678774,-500.0,0.00057534,120]
[325196775,1714572678785,-500.0,0.00057534,120]
[325196776,1714572678794,-623.71,0.00057534,120]
[325196777,1714572678803,-385.17017313,0.00057534,120]
[325196778,1714572678813,-500.0,0.00057534,120]
[325196779,1714572678823,-500.0,0.00057534,120]
[325196780,1714572678832,-500.0,0.00057534,120]
[325196781,1714572678842,-500.0,0.00057534,120]
[325196782,1714572678851,-500.0,0.00057534,120]
[325196783,1714572678862,-815.15,0.00057534,120]
[325196784,1714572678872,-500.0,0.00057534,120]
[325196785,1714572678881,-500.0,0.00057534,30]
[325196786,1714572678891,-587.94,0.00057534,120]
[325196787,1714572678902,-500.0,0.00057534,120]
[325196788,1714572678912,-500.0,0.00057534,120]
[325196789,1714572678921,-500.0,0.00057534,120]
[325196790,1714572678931,-1302.55,0.00057534,120]
[325196791,1714572678940,-500.0,0.00057534,120]
[325196792,1714572678950,-500.0,0.00057534,120]
[325196793,1714572678959,-524.03,0.00057534,120]
[325196794,1714572678969,-500.0,0.00057534,120]
[325196795,1714572678979,-549.97,0.00057534,120]
[325196796,1714572678988,-1645.04,0.00057534,120]
[325196797,1714572678997,-500.0,0.00057534,120]
[325196798,1714572679006,-500.0,0.00057534,120]
[325196799,1714572679016,-500.0,0.00057534,120]
[325196800,1714572679026,-965.17,0.00057534,120]
[325196801,1714572679036,-1276.34,0.00057534,120]
[325196802,1714572679045,-500.0,0.00057534,120]
[325196803,1714572679055,-548.5,0.00057534,120]
[325196804,1714572679064,-806.0,0.00057534,30]
[325196805,1714572679074,-2762.03,0.00057534,120]
[325196806,1714572679083,-500.0,0.00057534,120]
[325196807,1714572679092,-700.99,0.00057534,120]
[325196808,1714572679102,-500.0,0.00057534,120]
[325196809,1714572679111,-1059.71,0.00057534,120]
[325196810,1714572679120,-911.27,0.00057534,120]
[325196811,1714572679129,-500.0,0.00057534,120]
[325196812,1714572679138,-1000.0,0.00057534,120]
[325196813,1714572679150,-500.0,0.00057534,120]
[325196814,1714572679159,-500.0,0.00057534,120]
[325196815,1714572679173,-500.0,0.00057534,120]
[325196816,1714572679183,-504.37437888,0.00057534,120]
[325196817,1714572679192,-500.0,0.00057534,120]
[325196818,1714572679201,-500.0,0.00057534,120]
[325196819,1714572679210,-500.0,0.00057534,120]
[325196820,1714572679219,-874.24,0.00057534,120]
[325196821,1714572679228,-500.0,0.00057534,120]
[325196822,1714572679238,-500.0,0.00057534,2]
[325196823,1714572679247,-500.0,0.00057534,120]
[325196824,1714572679260,-635.83915161,0.00057534,120]
[325196825,1714572679269,-4565.84,0.00057534,120]
[325196826,1714572679279,-500.0,0.00057534,120]
[325196827,1714572679288,-500.0,0.00057534,120]
[325196828,1714572679297,-500.0,0.00057534,120]
[325196829,1714572679307,-5396.39,0.00057534,120]
[325196830,1714572679316,-500.0,0.00057534,120]
[325196831,1714572679325,-500.0,0.00057534,120]
[325196832,1714572679334,-523.06,0.00057534,120]
[325196833,1714572679343,-500.0,0.00057534,120]
[325196834,1714572679353,-500.0,0.00057534,120]
[325196835,1714572679362,-500.0,0.00057534,120]
[325196836,1714572679371,-519.47,0.00057534,120]
[325196837,1714572679382,-300.0,0.00057534,2]
[325196838,1714572679391,-377.9495604,0.00057534,120]
[325196839,1714572679402,-500.0,0.00057534,120]
[325196840,1714572679414,-781.51,0.00057534,120]
[325196841,1714572679436,-500.0,0.00057534,120]
[325196842,1714572679452,-500.0,0.00057534,120]
[325196843,1714572679472,-500.0,0.00057534,120]
[325196844,1714572679492,-670.21,0.00057534,120]
[325196845,1714572679511,-500.0,0.00057534,120]
[325196846,1714572679530,-500.0,0.00057534,120]
[325196847,1714572679545,-699.57,0.00057534,120]
[325196848,1714572679558,-500.0,0.00057534,120]
[325196849,1714572679576,-553.84,0.00057534,120]
[325196850,1714572679595,-500.0,0.00057534,120]
[325196851,1714572679611,-500.0,0.00057534,120]
[325196852,1714572679625,-500.0,0.00057534,120]
[325196853,1714572679645,-500.0,0.00057534,120]
[325196854,1714572679660,-500.87945794,0.00057534,120]
[325196855,1714572679676,-606.08416733,0.00057534,120]
[325196856,1714572679689,-500.0,0.00057534,120]
[325196857,1714572679705,-500.0,0.00057534,120]
[325196858,1714572679720,-670.01,0.00057534,120]
[325196859,1714572679736,-951.34,0.00057534,2]
[325196860,1714572679750,-735.78,0.00057534,120]
[325196861,1714572679766,-300.0,0.00057534,7]
[325196862,1714572679781,-501.53776556,0.00057534,120]
[325196863,1714572679797,-500.0,0.00057534,120]
[325196864,1714572679812,-500.0,0.00057534,120]
[325196865,1714572679828,-500.0,0.00057534,120]
[325196866,1714572679843,-500.0,0.00057534,120]
[325196867,1714572679858,-848.19,0.00057534,120]
[325196868,1714572679873,-182.95680996,0.00057534,120]
[325196869,1714572679888,-500.0,0.00057534,120]
[325196870,1714572679906,-199.82867865,0.00057534,120]
[325196871,1714572679921,-169.09726661,0.00057534,120]
[325196872,1714572679937,-500.0,0.00057534,120]
[325196873,1714572679953,-500.0,0.00057534,120]
[325196874,1714572679967,-500.0,0.00057534,120]
[325196875,1714572679982,-500.0,0.00057534,120]
[325196876,1714572679996,-1182.29,0.00057534,120]
[325196877,1714572680012,-500.0,0.00057534,120]
[325196878,1714572680026,-1042.65,0.00057534,120]
[325196879,1714572680040,-500.0,0.00057534,120]
[325196880,1714572680055,-592.11,0.00057534,120]
[325196881,1714572680069,-500.0,0.00057534,120]
[325196882,1714572680084,-500.0,0.00057534,120]
[325196883,1714572680098,-500.0,0.00057534,120]
[325196884,1714572680112,-500.0,0.00057534,120]
[325196885,1714572680127,-500.0,0.00057534,120]
[325196886,1714572680141,-1000.0,0.00057534,120]
[325196887,1714572680157,-500.0,0.00057534,120]
[325196888,1714572680176,-500.0,0.00057534,120]
[325196889,1714572680191,-1839.53,0.00057534,120]
[325196890,1714572680206,-500.0,0.00057534,120]
[325196891,1714572680220,-733.5,0.00057534,120]
[325196892,1714572680234,-500.0,0.00057534,120]
[325196893,1714572680250,-500.0,0.00057534,120]
[325196894,1714572680265,-500.0,0.00057534,120]
[325196895,1714572680280,-500.0,0.00057534,120]
[325196896,1714572680294,-500.0,0.00057534,120]
[325196897,1714572680311,-500.0,0.00057534,120]
[325196898,1714572680326,-500.0,0.00057534,120]
[325196899,1714572680340,-1073.97,0.00057534,120]
[325196900,1714572680355,-1287.33,0.00057534,120]
[325196901,1714572680370,-500.0,0.00057534,120]
[325196902,1714572680384,-563.35,0.00057534,120]
[325196903,1714572680401,-500.0,0.00057534,120]
[325196904,1714572680416,-500.0,0.00057534,120]
[325196905,1714572680430,-500.0,0.00057534,120]
[325196906,1714572680444,-500.0,0.00057534,120]
[325196907,1714572680459,-912.09,0.00057534,120]
[325196908,1714572680473,-500.0,0.00057534,120]
[325196909,1714572680489,-500.0,0.00057534,3]
[325196910,1714572680633,-500.0,0.00057534,120]
[325196911,1714572680645,-500.0,0.00057534,120]
[325196912,1714572680654,-500.0,0.00057534,120]
[325196913,1714572680664,-500.0,0.00057534,120]
[325196914,1714572680673,-500.0,0.00057534,120]
[325196915,1714572680683,-792.53,0.00057534,120]
[325196916,1714572680692,-511.91,0.00057534,120]
[325196917,1714572680702,-500.0,0.00057534,120]
[325196918,1714572680711,-1488.99,0.00057534,120]
[325196919,1714572680720,-775.37,0.00057534,120]
[325196920,1714572680729,-1779.15,0.00057534,120]
[325196921,1714572680739,-814.32,0.00057534,7]
[325196922,1714572680749,-348.35489215,0.00057534,120]
[325196923,1714572680761,-500.0,0.00057534,120]
[325196924,1714572680770,-500.0,0.00057534,120]
[325196925,1714572680779,-510.78427862,0.00057534,120]
[325196926,1714572680789,-500.0,0.00057534,120]
[325196927,1714572680798,-749.91,0.00057534,120]
[325196928,1714572680808,-515.08,0.00057534,120]
[325196929,1714572680817,-1107.24,0.00057534,120]
[325196930,1714572680827,-500.0,0.00057534,120]
[325196931,1714572680836,-500.0,0.00057534,120]
[325196932,1714572680845,-500.0,0.00057534,120]
[325196933,1714572680855,-500.0,0.00057534,120]
[325196934,1714572680864,-989.44,0.00057534,120]
[325196935,1714572680874,-672.45,0.00057534,120]
[325196936,1714572680883,-546.87,0.00057534,60]
[325196937,1714572680894,-500.0,0.00057534,120]
[325196938,1714572680906,-15331.91,0.00057534,120]
[325196939,1714572680916,-500.0,0.00057534,120]
[325196940,1714572680926,-500.0,0.00057534,120]
[325196941,1714572680937,-1460.27,0.00057534,120]
[325196942,1714572680948,-500.0,0.00057534,120]
[325196943,1714572680958,-533.93418669,0.00057534,120]
[325196944,1714572680968,-500.0,0.00057534,120]
[325196945,1714572680978,-3286.58,0.00057534,2]
[325196946,1714572680987,-372.66724936,0.00057534,120]
[325196947,1714572680997,-671.46,0.00057534,120]
[325196948,1714572681007,-500.0,0.00057534,120]
[325196949,1714572681017,-502.75744941,0.00057534,120]
[325196950,1714572681027,-500.0,0.00057534,120]
[325196951,1714572681037,-2544.3,0.00057534,120]
[325196952,1714572681047,-1492.06,0.00057534,120]
[325196953,1714572681056,-500.0,0.00057534,120]
[325196954,1714572681067,-500.0,0.00057534,120]
[325196955,1714572681077,-11017.25,0.00057534,120]
[325196956,1714572681087,-500.0,0.00057534,120]
[325196957,1714572681101,-500.0,0.00057534,120]
[325196958,1714572681112,-1610.35,0.00057534,120]
[325196959,1714572681122,-500.0,0.00057534,120]
[325196960,1714572681133,-1825.83,0.00057534,120]
[325196961,1714572681143,-605.20638172,0.00057534,120]
[325196962,1714572681155,-823.85,0.00057534,120]
[325196963,1714572681166,-500.0,0.00057534,120]
[325196964,1714572681178,-500.0,0.00057534,120]
[325196965,1714572681188,-500.0,0.00057534,120]
[325196966,1714572681198,-1779.68,0.00057534,120]
[325196967,1714572681208,-559.38,0.00057534,120]
[325196968,1714572681218,-500.0,0.00057534,120]
[325196969,1714572681227,-500.0,0.00057534,120]
[325196970,1714572681238,-562.93940027,0.00057534,120]
[325196971,1714572681247,-500.0,0.00057534,120]
[325196972,1714572681259,-500.0,0.00057534,120]
[325196973,1714572681269,-692.14,0.00057534,120]
[325196974,1714572681279,-1846.2,0.00057534,120]
[325196975,1714572681288,-1149.21,0.00057534,21]
[325196976,1714572681297,-500.0,0.00057534,120]
[325196977,1714572681307,-548.41,0.00057534,120]
[325196978,1714572681316,-500.0,0.00057534,120]
[325196979,1714572681326,-511.21,0.00057534,120]
[325196980,1714572681336,-2131.16,0.00057534,120]
[325196981,1714572681346,-500.0,0.00057534,120]
[325196982,1714572681355,-1147.1,0.00057534,120]
[325196983,1714572681365,-1609.49,0.00057534,120]
[325196984,1714572681374,-6055.3,0.00057534,120]
[325196985,1714572681383,-500.0,0.00057534,120]
[325196986,1714572681396,-500.0,0.00057534,120]
[325196987,1714572681405,-1668.77,0.00057534,120]
[325196988,1714572681415,-592.33,0.00057534,120]
[325196989,1714572681424,-500.0,0.00057534,120]
[325196990,1714572681434,-1156.16,0.00057534,120]
[325196991,1714572681443,-2002.71,0.00057534,120]
[325196992,1714572681452,-500.0,0.00057534,120]
[325196993,1714572681462,-777.36,0.00057534,120]
[325196994,1714572681472,-500.0,0.00057534,120]
[325196995,1714572681482,-1214.19,0.00057534,120]
[325196996,1714572681493,-500.0,0.00057534,120]
[325196997,1714572681504,-603.09,0.00057534,120]
[325196998,1714572681515,-609.08,0.00057534,120]
[325196999,1714572681526,-500.0,0.00057534,120]
[325197000,1714572681538,-500.0,0.00057534,120]
[325197001,1714572681549,-500.0,0.00057534,120]
[325197002,1714572681559,-1476.3,0.00057534,120]
[325197003,1714572681568,-500.0,0.00057534,120]
[325197004,1714572681579,-802.35,0.00057534,120]
[325197005,1714572681589,-5816.73,0.00057534,30]
[325197006,1714572681599,-554.12,0.00057534,120]
[325197007,1714572681608,-500.0,0.00057534,120]
[325197008,1714572681618,-500.0,0.00057534,120]
[325197009,1714572681628,-500.0,0.00057534,120]
[325197010,1714572681637,-863.59,0.00057534,120]
[325197011,1714572681649,-791.02,0.00057534,120]
[325197012,1714572681658,-6727.11,0.00057534,120]
[325197013,1714572681668,-500.0,0.00057534,120]
[325197014,1714572681678,-500.0,0.00057534,120]
[325197015,1714572681687,-748.69,0.00057534,120]
[325197016,1714572681696,-500.0,0.00057534,120]
[325197017,1714572681706,-183.6824219,0.00057534,120]
[325197018,1714572681715,-3192.87,0.00057534,120]
[325197019,1714572681724,-1062.83,0.00057534,120]
[325197020,1714572681734,-23207.15,0.00057534,120]
[325197021,1714572681743,-772.53,0.00057534,120]
[325197022,1714572681753,-500.0,0.00057534,120]
[325197023,1714572681762,-8045.56,0.00057534,120]
[325197024,1714572681772,-1945.48,0.00057534,120]
[325197025,1714572681781,-502.64532095,0.00057534,120]
[325197026,1714572681791,-500.0,0.00057534,120]
[325197027,1714572681801,-1954.15,0.00057534,120]
[325197028,1714572681810,-1471.13,0.00057534,120]
[325197029,1714572681819,-500.0,0.00057534,120]
[325197030,1714572681829,-881.83,0.00057534,120]
[325197031,1714572681838,-775.47,0.00057534,120]
[325197032,1714572681847,-1101.12,0.00057534,120]
[325197033,1714572681856,-2965.72,0.00057534,120]
[325197034,1714572681866,-719.83,0.00057534,120]
[325197035,1714572681875,-1429.92,0.00057534,120]
[325197036,1714572681885,-500.0,0.00057534,120]
[325197037,1714572681897,-500.0,0.00057534,120]
[325197038,1714572681907,-760.17,0.00057534,120]
[325197039,1714572681916,-601.05,0.00057534,120]
[325197040,1714572681926,-500.0,0.00057534,120]
[325197041,1714572681935,-500.0,0.00057534,120]
[325197042,1714572681945,-500.0,0.00057534,120]
[325197043,1714572681954,-928.81,0.00057534,120]
[325197044,1714572681964,-911.4,0.00057534,120]
[325197045,1714572681973,-500.0,0.00057534,120]
[325197046,1714572681983,-514.42,0.00057534,120]
[325197047,1714572681993,-500.0,0.00057534,120]
[325197048,1714572682002,-500.0,0.00057534,120]
[325197049,1714572682012,-500.0,0.00057534,120]
[325197050,1714572682022,-500.0,0.00057534,120]
[325197051,1714572682031,-595.81,0.00057534,120]
[325197052,1714572682040,-546.33,0.00057534,120]
[325197053,1714572682049,-1330.07,0.00057534,120]
[325197054,1714572682058,-500.0,0.00057534,120]
[325197055,1714572682067,-500.0,0.00057534,120]
[325197056,1714572682077,-500.0,0.00057534,120]
[325197057,1714572682086,-500.0,0.00057534,120]
[325197058,1714572682095,-734.7,0.00057534,120]
[325197059,1714572682105,-500.0,0.00057534,120]
[325197060,1714572682114,-517.3,0.00057534,120]
[325197061,1714572682124,-500.0,0.00057534,120]
[325197062,1714572682133,-500.0,0.00057534,120]
[325197063,1714572682235,-626.18,0.00057534,120]
[325197064,1714572682244,-894.54,0.00057534,120]
[325197065,1714572682256,-500.0,0.00057534,120]
[325197066,1714572682265,-500.0,0.00057534,120]
[325197067,1714572682274,-4028.05,0.00057534,120]
[325197068,1714572682283,-500.0,0.00057534,120]
[325197069,1714572682293,-2976.84,0.00057534,120]
[325197070,1714572682304,-500.0,0.00057534,120]
[325197071,1714572682313,-500.0,0.00057534,120]
[325197072,1714572682323,-500.0,0.00057534,120]
[325197073,1714572682333,-1523.39,0.00057534,120]
[325197074,1714572682342,-604.07512,0.00057542,2]
[325197075,1714572682351,-10000.0,0.00057863,120]
[325197076,1714572682360,-10000.0,0.00057896,120]
[325197077,1714572682370,-2000.0,0.00057981,120]
[325197078,1714572682379,-151.0,0.00058027,120]
[325197079,1714572682389,-604.07512,0.00058034,2]
[325197080,1714572682402,-500.0,0.00058082,120]
[325197081,1714572682411,-500.0,0.00058082,120]
[325197082,1714572682421,-500.0,0.00058082,120]
[325197083,1714572682431,-500.0,0.00058082,120]
[325197084,1714572682440,-675.55,0.00058082,120]
[325197085,1714572682450,-500.0,0.00058082,120]
[325197086,1714572682459,-500.0,0.00058082,120]
[325197087,1714572682469,-371.57677474,0.00058082,120]
[325197088,1714572682478,-500.0,0.00058082,120]
[325197089,1714572682488,-627.3,0.00058082,120]
[325197090,1714572682497,-500.0,0.00058082,120]
[325197091,1714572682506,-500.0,0.00058082,120]
[325197092,1714572682516,-640.68999067,0.00058082,120]
[325197093,1714572682525,-500.0,0.00058082,120]
[325197094,1714572682534,-500.0,0.00058082,60]
[325197095,1714572682544,-500.0,0.00058082,120]
[325197096,1714572682553,-981.62,0.00058082,120]
[325197097,1714572682562,-500.0,0.00058082,120]
[325197098,1714572682571,-1156.78,0.00058082,120]
[325197099,1714572682581,-615.44,0.00058082,120]
[325197100,1714572682590,-605.91,0.00058082,120]
[325197101,1714572682600,-500.0,0.00058082,120]
[325197102,1714572682610,-500.0,0.00058082,120]
[325197103,1714572682619,-500.0,0.00058082,120]
[325197104,1714572682629,-500.0,0.00058082,120]
[325197105,1714572682638,-1193.27,0.00058082,120]
[325197106,1714572682650,-500.0,0.00058082,120]
[325197107,1714572682660,-500.0,0.00058082,120]
[325197108,1714572682669,-500.0,0.00058082,120]
[325197109,1714572682678,-500.0,0.00058082,120]
[325197110,1714572682687,-496.53007339,0.00058082,120]
[325197111,1714572682699,-500.0,0.00058082,120]
[325197112,1714572682709,-500.0,0.00058082,120]
[325197113,1714572682718,-500.0,0.00058082,120]
[325197114,1714572682728,-535.92,0.00058082,120]
[325197115,1714572682738,-377.2593386,0.00058082,120]
[325197116,1714572682747,-500.0,0.00058082,120]
[325197117,1714572682758,-500.0,0.00058082,120]
[325197118,1714572682768,-500.0,0.00058082,120]
[325197119,1714572682777,-500.0,0.00058082,120]
[325197120,1714572682787,-623.71,0.00058082,120]
[325197121,1714572682796,-500.0,0.00058082,120]
[325197122,1714572682806,-500.0,0.00058082,120]
[325197123,1714572682815,-500.0,0.00058082,120]
[325197124,1714572682825,-500.0,0.00058082,120]
[325197125,1714572682834,-500.0,0.00058082,120]
[325197126,1714572682843,-815.15,0.00058082,120]
[325197127,1714572682854,-500.0,0.00058082,120]
[325197128,1714572682864,-500.0,0.00058082,30]
[325197129,1714572682873,-587.94,0.00058082,120]
[325197130,1714572682883,-500.0,0.00058082,120]
[325197131,1714572682892,-500.0,0.00058082,120]
[325197132,1714572682903,-500.0,0.00058082,120]
[325197133,1714572682914,-1302.55,0.00058082,120]
[325197134,1714572682923,-500.0,0.00058082,120]
[325197135,1714572682933,-500.0,0.00058082,120]
[325197136,1714572682942,-524.03,0.00058082,120]
[325197137,1714572682951,-501.87159403,0.00058082,120]
[325197138,1714572682961,-549.97,0.00058082,120]
[325197139,1714572682971,-1645.04,0.00058082,120]
[325197140,1714572682980,-500.0,0.00058082,120]
[325197141,1714572682990,-500.0,0.00058082,120]
[325197142,1714572682999,-500.0,0.00058082,120]
[325197143,1714572683009,-965.17,0.00058082,120]
[325197144,1714572683019,-1276.34,0.00058082,120]
[325197145,1714572683028,-500.0,0.00058082,120]
[325197146,1714572683038,-548.5,0.00058082,120]
[325197147,1714572683047,-806.0,0.00058082,35]
[325197148,1714572683056,-2762.03,0.00058082,120]
[325197149,1714572683066,-500.0,0.00058082,120]
[325197150,1714572683075,-700.99,0.00058082,120]
[325197151,1714572683084,-500.0,0.00058082,120]
[325197152,1714572683093,-1059.71,0.00058082,120]
[325197153,1714572683102,-911.27,0.00058082,120]
[325197154,1714572683112,-500.0,0.00058082,120]
[325197155,1714572683121,-1000.0,0.00058082,120]
[325197156,1714572683130,-500.0,0.00058082,120]
[325197157,1714572683140,-500.0,0.00058082,120]
[325197158,1714572683151,-500.0,0.00058082,120]
[325197159,1714572683160,-500.0,0.00058082,120]
[325197160,1714572683175,-500.0,0.00058082,120]
[325197161,1714572683184,-500.0,0.00058082,120]
[325197162,1714572683194,-874.24,0.00058082,120]
[325197163,1714572683204,-500.0,0.00058082,120]
[325197164,1714572683214,-500.0,0.00058082,2]
[325197165,1714572683224,-500.0,0.00058082,120]
[325197166,1714572683233,-4565.84,0.00058082,120]
[325197167,1714572683242,-500.0,0.00058082,120]
[325197168,1714572683254,-500.0,0.00058082,120]
[325197169,1714572683264,-500.0,0.00058082,120]
[325197170,1714572683273,-5396.39,0.00058082,120]
[325197171,1714572683282,-500.0,0.00058082,120]
[325197172,1714572683292,-523.06,0.00058082,120]
[325197173,1714572683301,-500.0,0.00058082,120]
[325197174,1714572683311,-500.0,0.00058082,120]
[325197175,1714572683320,-500.0,0.00058082,120]
[325197176,1714572683330,-519.47,0.00058082,120]
[325197177,1714572683340,-296.01220313,0.00058082,2]
[325197178,1714572683349,-500.0,0.00058082,120]
[325197179,1714572683358,-781.51,0.00058082,120]
[325197180,1714572683368,-500.0,0.00058082,120]
[325197181,1714572683377,-500.0,0.00058082,120]
[325197182,1714572683386,-500.0,0.00058082,120]
[325197183,1714572683397,-670.21,0.00058082,120]
[325197184,1714572683407,-500.0,0.00058082,120]
[325197185,1714572683416,-500.0,0.00058082,120]
[325197186,1714572683425,-699.57,0.00058082,120]
[325197187,1714572683434,-500.0,0.00058082,120]